bitfinex/quotes_ETHUSD_20250916
["timestamp","ask_amount","ask_price","bid_price","bid_amount"]
[1758047006722,7.44790344,4499.5,4499.4,0.001]
[1758047007070,7.2404561,4499.5,4499.4,0.001]
[1758047007222,7.44792514,4499.5,4499.4,0.001]
[1758047007578,8.1131794,4499.5,4499.4,0.001]
[1758047007864,9.20178281,4499.5,4499.4,0.001]
[1758047008020,2.22261735,4499.2,4499.1,1e-08]
[1758047008220,16.83255975,4499.2,4499.1,1e-08]
[1758047008452,18.06645032,4499.2,4499.1,1e-08]
[1758047012135,18.06642438,4499.2,4499.1,1e-08]
[1758047013873,8.2731209,4499.2,4499.1,0.80010001]
[1758047014044,6.81964088,4499.2,4499.1,1.27360001]
[1758047014431,6.13408639,4499.2,4499.1,1.27360001]
[1758047014639,6.34166317,4499.2,4499.1,1.27360001]
[1758047015741,6.13408639,4499.2,4499.1,1.27360001]
[1758047015941,5.92661735,4499.2,4499.1,1.27360001]
[1758047016368,1.708,4499.6,4499.1,1.27360001]
[1758047016674,2.22256795,4499.3,4499.2,0.9709]
[1758047016969,2.43026009,4499.3,4499.2,1.2736]
[1758047018586,3.91169214,4499.3,4499.2,1.2736]
[1758047018879,6.13426009,4499.3,4499.2,1.2736]
[1758047020486,2.43026009,4499.3,4499.2,1.2736]
[1758047020686,6.13426009,4499.3,4499.2,1.2736]
[1758047021285,6.13426009,4499.3,4499.2,0.3027]
[1758047021457,6.3421167,4499.3,4499.2,0.3027]
[1758047021657,6.13426009,4499.3,4499.2,1.2736]
[1758047021877,6.13442728,4499.3,4499.2,1.2736]
[1758047023490,2.33301735,4499.2,4499.1,1e-08]
[1758047023652,2.54087629,4499.2,4499.1,1e-08]
[1758047024053,2.74874016,4499.2,4499.1,1e-08]
[1758047028604,2.74874016,4499.2,4499.1,0.30270001]
[1758047028776,2.74874016,4499.2,4499.1,1.27360001]
[1758047028979,3.93936981,4499.2,4499.1,1.27360001]
[1758047030008,3.93936981,4499.2,4499.1,1e-08]
[1758047030210,3.93936981,4499.2,4499.1,0.30270001]
[1758047030386,3.93936981,4499.2,4499.1,1.27360001]
[1758047032902,3.93936981,4499.2,4499.1,0.30270001]
[1758047033097,3.93936981,4499.2,4499.1,1.27360001]
[1758047033779,3.93946745,4499.2,4499.1,1.27360001]
[1758047035110,7.64346745,4499.2,4499.1,1.27360001]
[1758047035316,7.64358388,4499.2,4499.1,0.77620001]
[1758047035998,7.64358388,4499.2,4499.1,1.24550001]
[1758047037111,7.64358388,4499.2,4499.1,0.77620001]
[1758047038012,7.64358388,4499.2,4499.1,1.24550001]
[1758047039411,8.1231537,4499.2,4499.1,1.24550001]
[1758047039876,7.64377316,4499.2,4499.1,1.24550001]
[1758047040309,0.41612616,4499.2,4499.1,1.23710001]
[1758047040512,0.002,4499.3,4499.1,1.23710001]
[1758047040683,0.002,4499.3,4499.2,0.95662617]
[1758047040883,0.002,4499.3,4499.2,3.3344]
[1758047041184,0.002,4499.3,4499.2,3.66322617]
[1758047041400,0.002,4499.3,4499.2,1.26322617]
[1758047041713,0.002,4499.3,4499.2,6.29831955]
[1758047041909,0.002,4499.3,4499.2,10.89871073]
[1758047042279,0.002,4499.3,4499.2,3.641]
[1758047045017,0.002,4499.3,4499.2,3.66322617]
[1758047045514,0.002,4499.3,4499.2,5.88584352]
[1758047045718,0.002,4499.3,4499.2,14.83121143]
[1758047046081,0.002,4499.3,4499.2,15.62321143]
[1758047050894,0.002,4499.3,4499.2,19.32621143]
[1758047060155,0.002,4499.3,4499.2,18.86011143]
[1758047060330,0.002,4499.3,4499.2,19.32521143]
[1758047071732,0.002,4499.3,4499.2,23.53521143]
[1758047075050,0.002,4499.3,4499.2,19.32521143]
[1758047075753,0.002,4499.3,4499.2,18.38981143]
[1758047076816,0.002,4499.3,4499.2,19.33661143]
[1758047079314,0.27490186,4500.0,4499.9,2.2222716]
[1758047079513,0.27490186,4500.0,4499.9,8.9232716]
[1758047079740,0.37390186,4500.0,4499.9,8.9232716]
[1758047079943,0.099,4500.0,4499.9,8.9232716]
[1758047081249,0.002,4500.3,4500.0,5.22222222]
[1758047081766,0.002,4500.3,4500.0,7.62222222]
[1758047081963,0.101,4500.1,4500.0,7.62222222]
[1758047084104,0.101,4500.1,4500.0,3.0]
[1758047084263,2.87798663,4500.1,4500.0,3.701]
[1758047084595,1.62480191,4500.1,4499.7,4.107]
[1758047084798,2.22232099,4499.8,4499.7,1.707]
[1758047084951,2.7389552,4499.8,4499.7,5.408]
[1758047085146,2.22237038,4499.7,4499.6,3.701]
[1758047085352,2.22241977,4499.6,4499.1,1e-08]
[1758047085568,2.22241977,4499.6,4499.2,3.701]
[1758047085569,0.74587332,4499.5,4499.2,3.701]
[1758047085773,0.2853,4499.3,4499.2,3.701]
[1758047086102,2.87546795,4499.3,4499.2,3.701]
[1758047086797,2.22261735,4499.2,4499.1,1e-08]
[1758047087304,2.87551735,4499.2,4499.1,1e-08]
[1758047087598,3.59332498,4499.2,4499.1,1e-08]
[1758047088520,3.38532588,4499.2,4499.1,1e-08]
[1758047089770,3.80096556,4499.2,4499.1,1e-08]
[1758047090478,4.28019514,4499.2,4499.1,1e-08]
[1758047092994,7.98219514,4499.2,4499.1,1e-08]
[1758047093366,7.50296556,4499.2,4499.1,1e-08]
[1758047093564,3.80096556,4499.2,4499.1,1e-08]
[1758047093764,7.50296556,4499.2,4499.1,1e-08]
[1758047094175,7.50244603,4499.2,4499.1,1e-08]
[1758047095706,7.29462619,4499.2,4499.1,1e-08]
[1758047095911,7.29450506,4499.2,4499.1,1e-08]
[1758047096093,7.50168424,4499.2,4499.1,1e-08]
[1758047096296,7.29450506,4499.2,4499.1,1e-08]
[1758047096510,7.29449034,4499.2,4499.1,1e-08]
[1758047096924,7.08732588,4499.2,4499.1,1e-08]
[1758047100726,6.71972588,4499.2,4499.1,1e-08]
[1758047100927,0.3676,4499.9,4499.1,0.74660001]
[1758047101235,0.002,4500.0,4499.2,0.48]
[1758047101411,0.1104,4499.5,4499.3,2.4]
[1758047101733,0.1104,4499.5,4499.4,1.2266]
[1758047104126,0.1104,4499.5,4499.4,0.2943]
[1758047104338,0.1104,4499.5,4499.4,0.56595257]
[1758047104533,0.1104,4499.5,4499.4,1.49825257]
[1758047105654,0.1104,4499.5,4499.4,1.01825257]
[1758047105819,0.1104,4499.5,4499.4,0.56595257]
[1758047106019,0.1104,4499.5,4499.4,1.2266]
[1758047106455,0.1104,4499.5,4499.4,3.6266]
[1758047109160,0.1104,4499.5,4499.4,3.64882518]
[1758047109858,0.1104,4499.5,4499.4,3.6266]
[1758047111531,0.1104,4499.5,4499.4,3.1743]
[1758047112182,0.1104,4499.5,4499.4,3.6266]
[1758047112476,0.1104,4499.5,4499.4,4.35946]
[1758047113058,0.1104,4499.5,4499.4,4.38168518]
[1758047113368,0.1104,4499.5,4499.4,4.35946]
[1758047115480,0.1104,4499.5,4499.4,3.42716]
[1758047116048,0.1104,4499.5,4499.4,4.35946]
[1758047116448,0.1104,4499.5,4499.4,3.90716]
[1758047116688,0.1104,4499.5,4499.4,4.35946]
[1758047117070,0.1104,4499.5,4499.4,3.42716]
[1758047117844,0.1104,4499.5,4499.4,3.90716]
[1758047118043,0.1104,4499.5,4499.4,4.35946]
[1758047120075,0.1104,4499.5,4499.4,6.58197855]
[1758047120261,0.002,4500.0,4499.4,4.35946]
[1758047120484,0.002,4500.0,4499.6,2.22241977]
[1758047120685,0.002,4500.0,4499.7,3.7232237]
[1758047120890,0.002,4500.0,4499.9,0.2943]
[1758047121059,0.002,4500.0,4499.9,6.3953]
[1758047121259,0.002,4500.0,4499.9,7.3276]
[1758047121901,0.002,4500.0,4499.9,7.8491307]
[1758047122200,0.002,4500.0,4499.9,10.0714023]
[1758047123802,0.002,4500.0,4499.9,7.8491307]
[1758047123973,0.002,4500.0,4499.9,6.9168307]
[1758047124178,0.002,4500.0,4499.9,10.0714023]
[1758047124969,0.002,4500.0,4499.9,13.0714023]
[1758047126715,0.002,4500.0,4499.9,10.8491307]
[1758047127812,0.002,4500.0,4499.9,13.0714023]
[1758047128489,0.002,4500.0,4499.9,10.8491307]
[1758047129690,0.002,4500.0,4499.9,13.0714023]
[1758047130227,0.002,4500.0,4499.9,10.8491307]
[1758047130411,0.002,4500.0,4499.9,13.0714023]
[1758047135622,0.002,4500.0,4499.9,14.0628167]
[1758047141942,0.002,4500.0,4499.9,6.1209451]
[1758047142106,0.101,4500.0,4499.9,9.2104]
[1758047142306,0.101,4500.0,4499.9,11.4326716]
[1758047142503,0.002,4500.0,4499.9,12.6889716]
[1758047142707,0.002,4500.0,4499.9,14.79340043]
[1758047145732,0.002,4500.0,4499.9,11.09340043]
[1758047145946,0.002,4500.0,4499.9,13.84780043]
[1758047147542,0.002,4500.0,4499.9,10.14780043]
[1758047147738,0.002,4500.0,4499.9,13.53710043]
[1758047148848,0.101,4500.0,4499.9,11.31482883]
[1758047149675,0.101,4500.0,4499.9,13.53710043]
[1758047149870,0.002,4500.0,4499.9,13.84780043]
[1758047150073,0.002,4500.0,4499.9,13.53710043]
[1758047150785,0.002,4500.0,4499.9,11.31482883]
[1758047151466,0.002,4500.0,4499.9,9.83710043]
[1758047151677,0.002,4500.0,4499.9,13.53610043]
[1758047152578,0.002,4500.0,4499.9,9.83710043]
[1758047152759,0.002,4500.0,4499.9,13.53610043]
[1758047153782,0.6549,4500.0,4499.9,11.31382883]
[1758047153989,0.6549,4500.0,4499.9,9.2094]
[1758047154130,0.2873,4500.0,4499.9,11.4316716]
[1758047154634,0.002,4500.0,4499.9,11.4316716]
[1758047155070,0.002,4500.0,4499.9,9.2094]
[1758047155473,0.002,4500.0,4499.9,11.4316716]
[1758047155774,0.002,4500.0,4499.8,0.001]
[1758047155775,2.2222716,4499.9,4499.8,0.001]
[1758047155984,3.91332998,4499.9,4499.8,0.001]
[1758047156273,2.22246916,4499.5,4499.4,0.001]
[1758047156470,2.63879816,4499.5,4499.4,0.001]
[1758047156686,3.29349816,4499.5,4499.4,0.001]
[1758047159026,3.293114,4499.5,4499.4,0.001]
[1758047159235,3.63650092,4499.5,4499.4,0.001]
[1758047159449,3.84425732,4499.5,4499.4,0.001]
[1758047159637,3.63648895,4499.5,4499.4,0.001]
[1758047160001,3.42872058,4499.5,4499.4,0.001]
[1758047160553,3.63647484,4499.5,4499.4,0.001]
[1758047160823,3.42872058,4499.5,4499.4,0.001]
[1758047161446,7.54421425,4499.5,4499.4,0.001]
[1758047161587,7.60721909,4499.5,4499.4,0.001]
[1758047161940,11.1118418,4499.5,4499.4,0.001]
[1758047166322,11.1118418,4499.5,4499.1,1e-08]
[1758047166323,2.22271615,4499.0,4498.9,0.001]
[1758047166503,13.29935981,4499.0,4498.9,0.001]
[1758047166702,13.95395981,4499.0,4498.9,0.001]
[1758047167641,14.04304419,4499.0,4498.9,0.001]
[1758047169371,2.22345747,4497.5,4497.4,0.001]
[1758047169666,2.22360579,4497.2,4497.1,1e-08]
[1758047169958,20.76425175,4497.2,4497.1,1e-08]
[1758047170381,16.23952835,4497.2,4497.1,1e-08]
[1758047170679,16.23952835,4497.2,4495.1,1.834]
[1758047170680,3.0,4497.1,4496.1,1e-08]
[1758047170961,2.22410035,4496.2,4496.1,1e-08]
[1758047171120,1.708,4496.5,4496.1,1e-08]
[1758047171326,3.713,4496.4,4496.2,0.4456]
[1758047171569,2.22405088,4496.3,4496.2,0.4548]
[1758047172126,2.22405088,4496.3,4496.2,1.1954]
[1758047172354,2.22410035,4496.2,4496.1,1e-08]
[1758047172554,7.75262375,4496.2,4496.1,1e-08]
[1758047172778,8.03972375,4496.2,4496.1,1e-08]
[1758047175359,11.75772375,4496.2,4496.1,1e-08]
[1758047175560,13.42539146,4496.2,4496.1,1e-08]
[1758047175782,16.63118625,4496.2,4496.1,1e-08]
[1758047176659,17.42318625,4496.2,4496.1,1e-08]
[1758047177578,17.42318625,4496.2,4496.1,0.00100001]
[1758047179184,17.62872487,4496.2,4496.1,0.00100001]
[1758047179391,18.10267939,4496.2,4496.1,0.00100001]
[1758047179747,17.62872487,4496.2,4496.1,0.00100001]
[1758047180280,18.10280536,4496.2,4496.1,0.00100001]
[1758047180650,18.10000536,4496.2,4496.1,0.00100001]
[1758047181760,11.49418196,4496.2,4496.1,0.29600001]
[1758047181961,7.09756285,4496.2,4496.1,0.29600001]
[1758047182259,4.30331243,4496.2,4496.1,0.29600001]
[1758047182457,7.81556285,4496.2,4496.1,0.29600001]
[1758047183381,8.02147995,4496.2,4496.1,0.00100001]
[1758047184394,8.49681613,4496.2,4496.1,0.00100001]
[1758047185788,8.49681613,4496.2,4496.1,0.31260001]
[1758047186284,8.49681613,4496.2,4496.1,0.00100001]
[1758047186650,4.77881613,4496.2,4496.1,0.77970001]
[1758047186856,0.20613064,4496.2,4496.1,1.27050001]
[1758047187194,3.92413064,4496.2,4496.1,1.27050001]
[1758047187387,0.20613064,4496.2,4496.1,1.27050001]
[1758047187558,3.92413064,4496.2,4496.1,1.27050001]
[1758047189493,6.14823099,4496.2,4496.1,1.27050001]
[1758047189806,6.35515245,4496.2,4496.1,0.77970001]
[1758047190005,13.54080345,4496.2,4496.1,0.00100001]
[1758047190190,13.44180345,4496.2,4496.1,0.00100001]
[1758047190391,8.41098005,4496.2,4496.1,0.31260001]
[1758047190596,8.41180823,4496.2,4496.1,0.31260001]
[1758047191109,3.11437416,4496.2,4496.1,0.31260001]
[1758047191279,2.63798063,4496.2,4496.1,1.27050001]
[1758047191475,6.35598063,4496.2,4496.1,1.27050001]
[1758047191807,6.83237416,4496.2,4496.1,1.27050001]
[1758047192975,3.11437416,4496.2,4496.1,1.27050001]
[1758047193175,2.63798063,4496.2,4496.1,1.27050001]
[1758047193377,4.13188028,4496.2,4496.1,1.27050001]
[1758047193802,6.35598063,4496.2,4496.1,1.27050001]
[1758047194001,6.83237416,4496.2,4496.1,1.27050001]
[1758047194202,3.11437416,4496.2,4496.1,0.77970001]
[1758047194446,6.83237416,4496.2,4496.1,0.77970001]
[1758047194601,6.83237416,4496.2,4496.1,1.27050001]
[1758047195522,6.83137416,4496.2,4496.1,1.27050001]
[1758047195694,6.83337416,4496.2,4496.1,1.27050001]
[1758047196526,6.83337416,4496.2,4496.1,0.77970001]
[1758047200606,6.83237416,4496.2,4496.1,0.77970001]
[1758047200808,6.83237416,4496.2,4496.1,1.27050001]
[1758047201392,6.83237416,4496.2,4496.1,0.77970001]
[1758047201799,6.83237416,4496.2,4496.1,0.31260001]
[1758047201997,6.83237416,4496.2,4496.1,0.77970001]
[1758047202551,3.11637416,4496.2,4496.1,1.27050001]
[1758047202726,6.83137416,4496.2,4496.1,1.27050001]
[1758047203432,6.83137416,4496.2,4496.1,0.00100001]
[1758047203433,8.00671264,4496.2,4496.1,0.00100001]
[1758047203939,8.48401264,4496.2,4496.1,0.00100001]
[1758047205445,11.67031264,4496.2,4496.1,0.00100001]
[1758047205600,2.22414981,4496.1,4495.6,0.001]
[1758047205807,7.25517111,4495.7,4495.6,0.001]
[1758047206146,12.14474492,4495.7,4495.6,0.001]
[1758047206444,15.62484492,4495.7,4495.6,0.001]
[1758047207012,16.41684492,4495.7,4495.6,0.001]
[1758047208216,16.4188785,4495.7,4495.6,0.001]
[1758047208418,16.64514134,4495.7,4495.6,0.001]
[1758047209209,0.792,4495.3,4494.8,0.12]
[1758047209474,7.53986699,4494.9,4494.8,0.12]
[1758047209648,12.62347438,4494.9,4494.8,0.12]
[1758047210412,7.59265098,4494.9,4494.8,0.12]
[1758047210609,13.69981286,4494.9,4494.8,0.12]
[1758047211052,13.22251286,4494.9,4494.8,0.12]
[1758047211365,16.69981286,4494.9,4494.8,0.12]
[1758047211520,16.70261286,4494.9,4494.8,0.12]
[1758047211711,11.66898946,4494.9,4494.8,0.12]
[1758047211909,11.67178946,4494.9,4494.8,1e-08]
[1758047212665,11.67178946,4494.9,4494.8,0.00100001]
[1758047213016,11.66898946,4494.9,4494.8,0.00100001]
[1758047213436,12.46378946,4494.9,4494.8,0.00100001]
[1758047215191,12.46378946,4494.9,4494.3,0.001]
[1758047215192,3.792,4494.8,4493.9,0.001]
[1758047215358,8.28095761,4494.0,4493.9,0.001]
[1758047215684,17.884565,4494.0,4493.9,0.001]
[1758047220079,17.600265,4494.0,4493.9,0.001]
[1758047220887,7.82749653,4494.0,4493.9,0.7927]
[1758047221063,7.86112324,4494.0,4493.9,1.2563]
[1758047222368,7.86212324,4494.0,4493.9,1.2563]
[1758047222574,7.65418914,4494.0,4493.9,1.2563]
[1758047223485,1.71,4494.0,4493.9,1.2563]
[1758047223689,5.429,4494.0,4493.9,1.2563]
[1758047223885,7.65418914,4494.0,4493.9,1.2563]
[1758047224088,5.429,4494.0,4493.9,1.2563]
[1758047224755,5.43,4494.0,4493.9,1.2563]
[1758047225150,7.65518914,4494.0,4493.9,1.2563]
[1758047225793,7.65518914,4494.0,4493.9,0.3099]
[1758047225989,8.64321805,4494.0,4493.9,0.3099]
[1758047226205,8.64321805,4494.0,4493.9,0.001]
[1758047226559,8.64321805,4494.0,4493.9,0.3099]
[1758047226860,8.64321805,4494.0,4493.9,0.7735]
[1758047226861,7.65518914,4494.0,4493.9,0.7735]
[1758047227194,7.65518914,4494.0,4493.9,1.2563]
[1758047227965,7.65518914,4494.0,4493.9,0.7735]
[1758047228300,7.65518914,4494.0,4493.9,1.2563]
[1758047229105,7.65418914,4494.0,4493.9,1.2563]
[1758047230204,7.65418914,4494.0,4493.9,0.7735]
[1758047230522,8.92641805,4494.0,4493.9,0.001]
[1758047230814,8.84956862,4494.0,4493.9,0.001]
[1758047230974,8.84956862,4494.0,4493.9,0.7735]
[1758047230975,8.64211805,4494.0,4493.9,0.7735]
[1758047231170,8.84965778,4494.0,4493.9,0.7735]
[1758047231705,8.94865778,4494.0,4493.9,0.001]
[1758047231914,13.44741885,4494.0,4493.9,0.001]
[1758047232070,14.11198608,4494.0,4493.9,0.001]
[1758047232491,14.61198608,4494.0,4493.9,0.001]
[1758047234112,14.42568608,4494.0,4493.9,0.001]
[1758047234796,14.61198608,4494.0,4493.9,0.001]
[1758047235573,14.42568608,4494.0,4493.9,0.001]
[1758047236409,14.51487216,4494.0,4493.9,0.001]
[1758047238513,14.01567216,4494.0,4493.9,0.001]
[1758047238985,14.01631252,4494.0,4493.9,0.001]
[1758047239801,14.70181252,4494.0,4493.9,0.001]
[1758047242007,14.51551252,4494.0,4493.9,0.001]
[1758047242592,3.01743674,4493.5,4493.4,1e-08]
[1758047242932,3.01743674,4493.5,4493.0,0.001]
[1758047242933,3.01763486,4493.1,4493.0,0.001]
[1758047243226,15.60551172,4493.1,4493.0,0.001]
[1758047243396,16.10471172,4493.1,4493.0,0.001]
[1758047243721,16.78291172,4493.1,4493.0,0.001]
[1758047243921,20.27842053,4493.1,4493.0,0.001]
[1758047244122,21.4784175,4493.1,4493.0,0.001]
[1758047244323,2.22608076,4492.2,4492.1,0.01]
[1758047244530,8.06986696,4492.2,4492.1,0.01]
[1758047244690,4.83013419,4492.2,4492.1,0.7656]
[1758047245021,8.07286696,4492.2,4492.1,0.7656]
[1758047245212,8.55113419,4492.2,4492.1,1.2271]
[1758047246210,4.83013419,4492.2,4492.1,1.2271]
[1758047246422,8.07286696,4492.2,4492.1,1.2271]
[1758047246720,8.55113419,4492.2,4492.1,1.2271]
[1758047248124,8.55113419,4492.2,4492.1,0.3143]
[1758047248332,9.91177267,4492.2,4492.1,0.01]
[1758047248527,10.40027267,4492.2,4492.1,0.01]
[1758047248722,10.40027267,4492.2,4492.1,0.011]
[1758047249106,9.91177267,4492.2,4492.1,0.011]
[1758047250905,9.91177267,4492.2,4492.1,1e-08]
[1758047251105,10.40027267,4492.2,4492.1,1e-08]
[1758047251726,9.91177267,4492.2,4492.1,1e-08]
[1758047251890,11.19227267,4492.2,4492.1,1e-08]
[1758047253193,14.19227267,4492.2,4492.1,1e-08]
[1758047254709,13.77928647,4492.2,4492.1,1e-08]
[1758047255041,14.19385379,4492.2,4492.1,1e-08]
[1758047255241,14.19385379,4492.2,4491.6,0.001]
[1758047255242,0.792,4492.0,4491.8,1e-08]
[1758047255447,16.19621273,4491.9,4491.8,1e-08]
[1758047255763,18.7408665,4491.9,4491.8,1e-08]
[1758047255909,19.03473575,4491.9,4491.8,1e-08]
[1758047256219,2.22657641,4491.2,4491.1,1e-08]
[1758047256423,17.9219122,4491.2,4491.1,1e-08]
[1758047256630,19.4691231,4491.2,4491.1,1e-08]
[1758047258131,19.76912824,4491.2,4491.1,1e-08]
[1758047258360,20.06299749,4491.2,4491.1,1e-08]
[1758047258737,20.06271999,4491.2,4491.1,1e-08]
[1758047260151,21.26139518,4491.2,4491.1,1e-08]
[1758047260447,21.26139518,4491.2,4489.6,0.4513]
[1758047260448,3.01907229,4490.2,4489.6,0.4513]
[1758047260652,18.44673776,4490.2,4489.6,0.4513]
[1758047260819,18.92500499,4490.2,4489.6,0.4513]
[1758047261360,19.02400499,4490.2,4489.6,0.4513]
[1758047261651,2.22756838,4489.2,4488.1,0.01]
[1758047261959,6.1568543,4489.2,4488.1,0.01]
[1758047262167,6.1568543,4489.2,4489.1,0.3143]
[1758047262371,6.1568543,4489.2,4489.1,1.2271]
[1758047264160,5.94956838,4489.2,4489.1,1.2271]
[1758047265132,5.94956838,4489.2,4489.1,0.3143]
[1758047265338,6.93837454,4489.2,4489.1,1.2271]
[1758047265662,5.94956838,4489.2,4489.1,1.2271]
[1758047265889,5.94956838,4489.2,4489.1,1.2281]
[1758047269085,5.95656838,4489.2,4489.1,1.2281]
[1758047269361,2.22756838,4489.2,4489.1,1.2281]
[1758047269571,5.95756838,4489.2,4489.1,1.2281]
[1758047269775,2.22756838,4489.2,4489.1,1.2281]
[1758047269982,5.95656838,4489.2,4489.1,1.2281]
[1758047270533,2.22756838,4489.2,4489.1,1.2281]
[1758047270763,5.95656838,4489.2,4489.1,1.2281]
[1758047271169,2.22756838,4489.2,4489.1,1.2281]
[1758047271366,6.1631475,4489.2,4489.1,1.2281]
[1758047272546,2.4341475,4489.2,4489.1,1.2281]
[1758047272747,6.1631475,4489.2,4489.1,1.2281]
[1758047273133,2.4341475,4489.2,4489.1,1.2281]
[1758047273332,6.1631475,4489.2,4489.1,1.2281]
[1758047274234,6.1621475,4489.2,4489.1,1.2281]
[1758047275869,6.1621475,4489.2,4489.1,0.3153]
[1758047276070,6.1621475,4489.2,4489.1,0.7749]
[1758047276250,6.1621475,4489.2,4489.1,0.3153]
[1758047276659,6.1621475,4489.2,4489.1,1.2404]
[1758047277988,6.63897845,4489.2,4489.1,1.2404]
[1758047280792,6.63697845,4489.2,4489.1,1.2404]
[1758047282224,6.84436138,4489.2,4489.1,1.2404]
[1758047282381,4.40941007,4489.2,4489.1,1.2404]
[1758047282702,4.40941007,4489.2,4489.1,1.37644]
[1758047282703,3.93257912,4489.2,4489.1,1.37644]
[1758047282872,0.20657912,4489.2,4489.1,1.37644]
[1758047283311,2.4341475,4489.2,4489.1,1.37644]
[1758047283598,2.4341475,4489.2,4489.1,1.2404]
[1758047283806,2.4341475,4489.2,4489.1,0.3153]
[1758047284004,2.4341475,4489.2,4489.1,0.7749]
[1758047284325,4.41058952,4489.2,4489.1,1.2404]
[1758047284477,0.20657912,4489.2,4489.1,1.2404]
[1758047284675,3.93457912,4489.2,4489.1,1.2404]
[1758047284982,0.20657912,4489.2,4489.1,1.37866777]
[1758047285185,6.1621475,4489.2,4489.1,1.37866777]
[1758047285389,3.93578161,4489.2,4489.1,1.2404]
[1758047288378,6.16334999,4489.2,4489.1,1.2404]
[1758047288578,3.93578161,4489.2,4489.1,1.2404]
[1758047289007,6.16334999,4489.2,4489.1,1.2404]
[1758047289209,3.93578161,4489.2,4489.1,1.2404]
[1758047289378,3.93584239,4489.2,4489.1,1.2404]
[1758047289906,3.93584239,4489.2,4489.1,1.88435936]
[1758047290208,0.20784239,4489.2,4489.1,1.88435936]
[1758047290622,0.20784239,4489.2,4489.1,4.11197736]
[1758047291075,0.20784239,4489.2,4489.1,1.88435936]
[1758047291276,0.20784239,4489.5,4489.1,1.88435936]
[1758047291486,0.20784239,4489.4,4489.2,5.98201693]
[1758047291772,3.93484239,4489.3,4489.1,0.011]
[1758047291973,6.37019298,4489.2,4489.1,0.011]
[1758047292226,6.85339298,4489.2,4489.1,0.011]
[1758047292429,7.43220193,4489.2,4489.1,0.011]
[1758047292628,8.41670975,4489.2,4489.1,0.011]
[1758047294545,7.93350975,4489.2,4489.1,0.011]
[1758047294846,8.60210975,4489.2,4489.1,0.011]
[1758047295049,14.15902668,4489.2,4489.1,0.011]
[1758047295718,9.10210975,4489.2,4489.1,0.011]
[1758047298349,5.18970975,4489.2,4489.1,0.011]
[1758047298512,8.4398008,4489.2,4489.1,0.011]
[1758047298844,8.91870975,4489.2,4489.1,0.011]
[1758047299952,5.37510975,4489.2,4489.1,0.011]
[1758047300246,5.37510975,4489.2,4488.6,0.001]
[1758047300247,0.792,4489.0,4488.6,0.001]
[1758047300451,7.28473344,4488.7,4488.6,0.001]
[1758047300654,12.00896699,4488.7,4488.6,0.001]
[1758047300963,12.67666699,4488.7,4488.6,0.001]
[1758047301814,15.67666699,4488.7,4488.6,0.001]
[1758047302313,16.46866699,4488.7,4488.6,0.001]
[1758047302518,17.01442919,4488.7,4488.6,0.001]
[1758047303060,8.04401226,4488.7,4488.6,0.001]
[1758047303367,11.18911226,4488.7,4488.6,0.001]
[1758047303526,11.28811226,4488.7,4488.6,0.001]
[1758047303856,11.77131226,4488.7,4488.6,0.001]
[1758047304015,9.85235006,4488.7,4488.6,0.3175]
[1758047304414,9.85235006,4488.7,4488.6,0.001]
[1758047304612,10.42165006,4488.7,4488.6,0.001]
[1758047304923,11.39995006,4488.7,4488.6,0.001]
[1758047305825,16.95686699,4488.7,4488.6,0.001]
[1758047306123,7.60992609,4488.7,4488.6,0.001]
[1758047306328,11.34092609,4488.7,4488.6,0.001]
[1758047306718,11.34092609,4488.7,4488.6,0.2987]
[1758047306957,7.60992609,4488.7,4488.6,0.001]
[1758047307119,11.34092609,4488.7,4488.6,0.001]
[1758047307798,11.91022609,4488.7,4488.6,0.001]
[1758047308006,17.15344302,4488.7,4488.6,0.001]
[1758047308294,11.62522609,4488.7,4488.6,0.001]
[1758047308794,7.60992609,4488.7,4488.6,0.2987]
[1758047309089,11.34092609,4488.7,4488.6,0.2987]
[1758047309294,11.34092609,4488.7,4488.6,0.001]
[1758047309457,11.62440265,4488.7,4488.6,0.001]
[1758047309656,12.09470265,4488.7,4488.6,0.001]
[1758047310180,12.09470265,4488.7,4488.6,0.2987]
[1758047310181,11.34010265,4488.7,4488.6,0.2987]
[1758047310687,11.33910265,4488.7,4488.6,1.2218]
[1758047311087,11.33910265,4488.7,4488.6,0.2987]
[1758047311497,11.33910265,4488.7,4488.6,0.001]
[1758047311498,11.62179127,4488.7,4488.6,0.001]
[1758047311874,12.09209127,4488.7,4488.6,0.001]
[1758047312414,12.09489127,4488.7,4488.6,0.001]
[1758047312700,12.09209127,4488.7,4488.6,0.001]
[1758047313267,7.60749127,4488.7,4488.6,0.2987]
[1758047313469,7.60749127,4488.7,4488.6,1.2218]
[1758047313470,10.34991524,4488.7,4488.6,1.2218]
[1758047314082,10.34991524,4488.7,4488.6,0.001]
[1758047314083,6.24171828,4488.7,4488.6,0.001]
[1758047314285,15.9761205,4488.7,4488.6,0.001]
[1758047314688,16.16242723,4488.7,4488.6,0.001]
[1758047314909,18.92651108,4488.7,4488.6,0.001]
[1758047315498,18.74021108,4488.7,4488.6,0.001]
[1758047315821,2.22856124,4487.2,4487.1,0.4657]
[1758047316021,5.95956124,4487.2,4487.1,0.4657]
[1758047316324,5.95956124,4487.2,4487.1,0.3077]
[1758047316682,5.95956124,4487.2,4487.1,1.2308]
[1758047316883,11.32257047,4487.2,4487.1,0.01]
[1758047317098,11.32257047,4487.2,4487.1,0.3077]
[1758047317099,7.66235055,4487.2,4487.1,0.3077]
[1758047317321,6.16665354,4487.2,4487.1,1.2308]
[1758047317634,6.16665354,4487.2,4487.1,0.01]
[1758047317818,6.16665354,4487.2,4487.1,0.3077]
[1758047318021,6.16665354,4487.2,4487.1,1.2308]
[1758047318546,5.95956124,4487.2,4487.1,0.01]
[1758047318725,5.95956124,4487.2,4487.1,1.2308]
[1758047318726,2.43562382,4487.2,4487.1,1.2308]
[1758047319027,5.95956124,4487.2,4487.1,1.2308]
[1758047319516,3.731,4487.2,4487.1,1.35388]